fUST/lending_fUST_20240918
["ID","MTS","AMOUNT","RATE_DAILY","PERIOD"]
[338422062,1726627852638,-151.0,0.00019442,2]
[338422063,1726627852648,-151.0,0.00019442,2]
[338422064,1726627852658,-151.0,0.00019442,2]
[338422065,1726627852667,-151.0,0.00019442,2]
[338422066,1726627852678,-151.0,0.00019442,2]
[338422067,1726627852688,-151.0,0.00019442,2]
[338422068,1726627852697,-2206.03,0.00019451,2]
[338422069,1726627852707,-2206.03,0.00019451,2]
[338422070,1726627852717,-2206.03,0.00019451,2]
[338422071,1726627852727,-500.0,0.00019451,2]
[338422072,1726627852737,-500.0,0.00019451,2]
[338422073,1726627852747,-169.53195245,0.00019451,2]
[338422074,1726627852756,-2930.24233511,0.00019452,5]
[338422075,1726627852765,-504.33902781,0.00019452,2]
[338422076,1726627852777,-500.0,0.00019452,2]
[338422077,1726627852788,-519.54843535,0.00019452,2]
[338422078,1726627852798,-500.0,0.00019452,2]
[338422079,1726627852809,-500.0,0.00019452,2]
[338422080,1726627852821,-500.0,0.00019452,2]
[338422081,1726627852832,-500.0,0.00019452,2]
[338422082,1726627852841,-151.0,0.00019452,2]
[338422083,1726627852852,-500.0,0.00019452,2]
[338422084,1726627852862,-607.55,0.00019452,2]
[338422085,1726627852872,-500.0,0.00019452,2]
[338422086,1726627852881,-1770.19,0.00019452,2]
[338422087,1726627852891,-500.0,0.00019452,2]
[338422088,1726627852900,-1147.85,0.00019452,2]
[338422089,1726627852909,-500.0,0.00019452,2]
[338422090,1726627852919,-156.390996,0.00019452,2]
[338422091,1726627852928,-500.0,0.00019452,2]
[338422092,1726627852937,-500.0,0.00019452,2]
[338422093,1726627852946,-512.16347041,0.00019452,2]
[338422094,1726627852956,-500.0,0.00019452,2]
[338422095,1726627852965,-500.0,0.00019452,2]
[338422096,1726627852974,-503.94279564,0.00019452,2]
[338422097,1726627852984,-500.0,0.00019452,2]
[338422098,1726627852993,-500.0,0.00019452,2]
[338422099,1726627853003,-151.0,0.00019452,2]
[338422100,1726627853013,-727.55,0.00019452,2]
[338422101,1726627853022,-500.0,0.00019452,2]
[338422102,1726627853033,-502.76571682,0.00019452,2]
[338422103,1726627853042,-750.01,0.00019452,2]
[338422104,1726627853052,-500.0,0.00019452,2]
[338422105,1726627853061,-500.0,0.00019452,2]
[338422106,1726627853071,-500.0,0.00019452,2]
[338422107,1726627853081,-510.11656811,0.00019452,2]
[338422108,1726627853090,-500.0,0.00019452,2]
[338422109,1726627853099,-500.0,0.00019452,2]
[338422110,1726627853108,-500.0,0.00019452,2]
[338422111,1726627853117,-500.0,0.00019452,2]
[338422112,1726627853126,-611.6,0.00019452,2]
[338422113,1726627853136,-500.0,0.00019452,2]
[338422114,1726627853145,-500.0,0.00019452,2]
[338422115,1726627853154,-500.0,0.00019452,2]
[338422116,1726627853163,-502.11732115,0.00019452,2]
[338422117,1726627853172,-501.73245518,0.00019452,2]
[338422118,1726627853181,-500.0,0.00019452,2]
[338422119,1726627853192,-500.0,0.00019452,2]
[338422120,1726627853202,-500.0,0.00019452,2]
[338422121,1726627853212,-500.0,0.00019452,2]
[338422122,1726627853223,-747.39,0.00019452,2]
[338422123,1726627853232,-500.0,0.00019452,2]
[338422124,1726627853242,-805.97,0.00019452,2]
[338422125,1726627853253,-500.0,0.00019452,2]
[338422126,1726627853264,-500.0,0.00019452,2]
[338422127,1726627853276,-500.72,0.00019452,2]
[338422128,1726627853287,-500.0,0.00019452,2]
[338422129,1726627853299,-500.0,0.00019452,2]
[338422130,1726627853309,-500.0,0.00019452,2]
[338422131,1726627853465,-500.0,0.00019452,2]
[338422132,1726627853475,-500.0,0.00019452,2]
[338422133,1726627853486,-500.64989543,0.00019452,2]
[338422134,1726627853496,-1086.64,0.00019452,2]
[338422135,1726627853506,-500.7407623,0.00019452,2]
[338422136,1726627853517,-151.0,0.00019452,2]
[338422137,1726627853527,-500.0,0.00019452,2]
[338422138,1726627853537,-500.0,0.00019452,2]
[338422139,1726627853547,-299.137519,0.00019452,2]
[338422140,1726627853557,-500.0,0.00019452,2]
[338422141,1726627853567,-500.0,0.00019452,2]
[338422142,1726627853579,-151.0,0.00019452,2]
[338422143,1726627853588,-1064.58,0.00019452,2]
[338422144,1726627853597,-500.0,0.00019452,2]
[338422145,1726627853607,-1300.1,0.00019452,2]
[338422146,1726627853616,-500.0,0.00019452,2]
[338422147,1726627853625,-500.0,0.00019452,2]
[338422148,1726627853636,-500.0,0.00019452,2]
[338422149,1726627853646,-300.4,0.00019452,2]
[338422150,1726627853655,-1017.71,0.00019452,2]
[338422151,1726627853668,-720.04,0.00019452,2]
[338422152,1726627853677,-151.0,0.00019452,2]
[338422153,1726627853689,-172.93295346,0.00019452,2]
[338422154,1726627853700,-395.80015306,0.00019452,2]
[338422155,1726627853712,-500.0,0.00019452,2]
[338422156,1726627853723,-1101.06,0.00019452,2]
[338422157,1726627853735,-500.0,0.00019452,2]
[338422158,1726627853745,-745.15,0.00019452,2]
[338422159,1726627853754,-151.0,0.00019452,2]
[338422160,1726627853766,-1011.45,0.00019452,2]
[338422161,1726627853777,-500.0,0.00019452,2]
[338422162,1726627853786,-500.0,0.00019452,2]
[338422163,1726627853797,-250.0,0.00019452,2]
[338422164,1726627853808,-500.0,0.00019452,2]
[338422165,1726627853817,-500.0,0.00019452,2]
[338422166,1726627853826,-535.68,0.00019452,2]
[338422167,1726627853835,-716.28,0.00019452,2]
[338422168,1726627853844,-500.0,0.00019452,2]
[338422169,1726627853853,-500.0,0.00019452,2]
[338422170,1726627853862,-342.58639172,0.00019452,2]
[338422171,1726627853871,-500.0,0.00019452,2]
[338422172,1726627853880,-550.21,0.00019452,2]
[338422173,1726627853890,-693.63,0.00019452,2]
[338422174,1726627853899,-500.0,0.00019452,2]
[338422175,1726627853908,-500.0,0.00019452,2]
[338422176,1726627853917,-500.0,0.00019452,2]
[338422177,1726627853927,-500.0,0.00019452,2]
[338422178,1726627853936,-500.0,0.00019452,2]
[338422179,1726627853945,-500.0,0.00019452,2]
[338422180,1726627853954,-500.0,0.00019452,2]
[338422181,1726627853963,-504.6009651,0.00019452,2]
[338422182,1726627853974,-501.33371877,0.00019452,2]
[338422183,1726627853985,-500.0,0.00019452,2]
[338422184,1726627853995,-162.2085388,0.00019452,2]
[338422185,1726627854005,-500.0,0.00019452,2]
[338422186,1726627854015,-500.0,0.00019452,2]
[338422187,1726627854025,-500.0,0.00019452,2]
[338422188,1726627854037,-2958.51,0.00019452,2]
[338422189,1726627854048,-762.35,0.00019452,2]
[338422190,1726627854062,-1259.66,0.00019452,2]
[338422191,1726627854073,-500.0,0.00019452,2]
[338422192,1726627854083,-500.0,0.00019452,2]
[338422193,1726627854094,-500.0,0.00019452,2]
[338422194,1726627854104,-500.0,0.00019452,2]
[338422195,1726627854115,-500.0,0.00019452,2]
[338422196,1726627854126,-748.56,0.00019452,2]
[338422197,1726627854136,-760.0,0.00019452,2]
[338422198,1726627854146,-501.43493862,0.00019452,2]
[338422199,1726627854157,-500.0,0.00019452,2]
[338422200,1726627854167,-500.0,0.00019452,2]
[338422201,1726627854178,-500.0,0.00019452,2]
[338422202,1726627854189,-500.0,0.00019452,2]
[338422203,1726627854199,-500.0,0.00019452,2]
[338422204,1726627854209,-500.0,0.00019452,2]
[338422205,1726627854219,-500.0,0.00019452,2]
[338422206,1726627854229,-694.98,0.00019452,2]
[338422207,1726627854239,-503.38297996,0.00019452,2]
[338422208,1726627854250,-500.0,0.00019452,2]
[338422209,1726627854261,-500.0,0.00019452,2]
[338422210,1726627854272,-1623.99,0.00019452,2]
[338422211,1726627854285,-1245.07,0.00019452,2]
[338422212,1726627854295,-500.0,0.00019452,2]
[338422213,1726627854306,-1797.18,0.00019452,2]
[338422214,1726627854316,-500.0,0.00019452,2]
[338422215,1726627854327,-500.0,0.00019452,2]
[338422216,1726627854337,-2449.68,0.00019452,2]
[338422217,1726627854347,-500.0,0.00019452,2]
[338422218,1726627854358,-541.53,0.00019452,2]
[338422219,1726627854369,-500.0,0.00019452,2]
[338422220,1726627854379,-500.0,0.00019452,2]
[338422221,1726627854391,-500.0,0.00019452,2]
[338422222,1726627854402,-500.0,0.00019452,2]
[338422223,1726627854412,-500.0,0.00019452,2]
[338422224,1726627854424,-500.0,0.00019452,2]
[338422225,1726627854435,-500.0,0.00019452,2]
[338422226,1726627854448,-500.0,0.00019452,2]
[338422227,1726627854463,-593.91,0.00019452,2]
[338422228,1726627854474,-500.0,0.00019452,2]
[338422229,1726627854485,-676.9,0.00019452,2]
[338422230,1726627854496,-835.91,0.00019452,2]
[338422231,1726627854508,-708.42,0.00019452,2]
[338422232,1726627854517,-500.0,0.00019452,2]
[338422233,1726627854529,-151.0,0.00019452,2]
[338422234,1726627854542,-500.0,0.00019452,2]
[338422235,1726627854551,-500.0,0.00019452,2]
[338422236,1726627854560,-557.33,0.00019452,2]
[338422237,1726627854569,-500.0,0.00019452,2]
[338422238,1726627854578,-151.0,0.00019452,2]
[338422239,1726627854587,-881.01,0.00019452,2]
[338422240,1726627854596,-500.0,0.00019452,2]
[338422241,1726627854607,-500.0,0.00019452,2]
[338422242,1726627854618,-1434.41,0.00019452,2]
[338422243,1726627854628,-500.0,0.00019452,2]
[338422244,1726627854640,-1184.72,0.00019452,2]
[338422245,1726627854652,-194.42,0.00019452,2]
[338422246,1726627854663,-340.34550784,0.00019452,2]
[338422247,1726627854674,-720.66,0.00019452,2]
[338422248,1726627854684,-3020.55,0.00019452,2]
[338422249,1726627854694,-520.69,0.00019452,2]
[338422250,1726627854707,-1055.75,0.00019452,2]
[338422251,1726627854718,-500.0,0.00019452,2]
[338422252,1726627854729,-500.0,0.00019452,2]
[338422253,1726627854741,-500.0,0.00019452,2]
[338422254,1726627854751,-1387.72,0.00019452,2]
[338422255,1726627854762,-500.0,0.00019452,2]
[338422256,1726627854773,-500.0,0.00019452,2]
[338422257,1726627854784,-500.0,0.00019452,2]
[338422258,1726627854792,-500.0,0.00019452,2]
[338422259,1726627854802,-2247.0,0.00019452,2]
[338422260,1726627854814,-683.75,0.00019452,2]
[338422261,1726627854826,-622.0,0.00019452,2]
[338422262,1726627854836,-500.0,0.00019452,2]
[338422263,1726627854847,-500.0,0.00019452,2]
[338422264,1726627854858,-2620.05,0.00019452,2]
[338422265,1726627854868,-639.35,0.00019452,2]
[338422266,1726627854879,-500.9548088,0.00019452,2]
[338422267,1726627854889,-1257.52,0.00019452,2]
[338422268,1726627854900,-453.16904795,0.00019452,2]
[338422269,1726627854912,-500.0,0.00019452,2]
[338422270,1726627854922,-991.7,0.00019452,2]
[338422271,1726627854932,-500.0,0.00019452,2]
[338422272,1726627854942,-1480.04,0.00019452,2]
[338422273,1726627854952,-500.0,0.00019452,2]
[338422274,1726627854961,-500.0,0.00019452,2]
[338422275,1726627854970,-500.0,0.00019452,2]
[338422276,1726627854980,-500.0,0.00019452,2]
[338422277,1726627854991,-500.0,0.00019452,2]
[338422278,1726627855002,-1783.01,0.00019452,2]
[338422279,1726627855012,-500.0,0.00019452,2]
[338422280,1726627855022,-500.0,0.00019452,2]
[338422281,1726627855035,-2871.25,0.00019452,2]
[338422282,1726627855044,-500.59420102,0.00019452,2]
[338422283,1726627855052,-1120.36,0.00019452,2]
[338422284,1726627855062,-565.42,0.00019452,2]
[338422285,1726627855071,-500.0,0.00019452,2]
[338422286,1726627855082,-500.0,0.00019452,2]
[338422287,1726627855092,-500.0,0.00019452,2]
[338422288,1726627855102,-510.35,0.00019452,2]
[338422289,1726627855115,-500.0,0.00019452,2]
[338422290,1726627855126,-500.0,0.00019452,2]
[338422291,1726627855136,-500.0,0.00019452,2]
[338422292,1726627855146,-500.0,0.00019452,2]
[338422293,1726627855156,-1160.71,0.00019452,2]
[338422294,1726627855166,-500.0,0.00019452,2]
[338422295,1726627855177,-500.0,0.00019452,2]
[338422296,1726627855187,-500.0,0.00019452,2]
[338422297,1726627855197,-530.2,0.00019452,2]
[338422298,1726627855207,-500.0,0.00019452,2]
[338422299,1726627855217,-500.0,0.00019452,2]
[338422300,1726627855227,-556.1697948,0.00019452,2]
[338422301,1726627855239,-500.0,0.00019452,2]
[338422302,1726627855250,-1236.93,0.00019452,2]
[338422303,1726627855261,-1570.43,0.00019452,2]
[338422304,1726627855273,-500.0,0.00019452,2]
[338422305,1726627855286,-1488.13,0.00019452,2]
[338422306,1726627855298,-963.18,0.00019452,2]
[338422307,1726627855308,-803.45,0.00019452,2]
[338422308,1726627855318,-151.0,0.00019452,2]
[338422309,1726627855329,-151.0,0.00019452,2]
[338422310,1726627855339,-792.22,0.00019452,2]
[338422311,1726627855351,-413.00301421,0.00019452,2]
[338422312,1726627855362,-1683.57,0.00019452,2]
[338422313,1726627855373,-500.0,0.00019452,2]
[338422314,1726627855384,-500.0,0.00019452,2]
[338422315,1726627855394,-500.0,0.00019452,2]
[338422316,1726627855405,-500.0,0.00019452,2]
[338422317,1726627855415,-500.0,0.00019452,2]
[338422318,1726627855424,-2673.28,0.00019452,2]
[338422319,1726627855433,-500.0,0.00019452,2]
[338422320,1726627855444,-701.6,0.00019452,2]
[338422321,1726627855456,-500.0,0.00019452,2]
[338422322,1726627855467,-501.03767334,0.00019452,2]
[338422323,1726627855477,-500.0,0.00019452,2]
[338422324,1726627855487,-500.0,0.00019452,2]
[338422325,1726627855496,-500.87440388,0.00019452,2]
[338422326,1726627855507,-500.0,0.00019452,2]
[338422327,1726627855518,-670.64,0.00019452,2]
[338422328,1726627855530,-500.0,0.00019452,2]
[338422329,1726627855540,-2189.41,0.00019452,2]
[338422330,1726627855551,-500.0,0.00019452,2]
[338422331,1726627855563,-500.0,0.00019452,2]
[338422332,1726627855574,-500.0,0.00019452,2]
[338422333,1726627855584,-500.0,0.00019452,2]
[338422334,1726627855595,-500.0,0.00019452,2]
[338422335,1726627855606,-272.13646706,0.00019452,2]
[338422336,1726627855618,-1140.97,0.00019452,2]
[338422337,1726627855628,-678.14,0.00019452,2]
[338422338,1726627855638,-573.29967654,0.00019452,2]
[338422339,1726627855648,-500.0,0.00019452,2]
[338422340,1726627855658,-2195.77,0.00019452,2]
[338422341,1726627855668,-500.0,0.00019452,2]
[338422342,1726627855679,-1056.58,0.00019452,2]
[338422343,1726627855690,-561.579837,0.00019452,2]
[338422344,1726627855699,-500.0,0.00019452,2]
[338422345,1726627855708,-500.0,0.00019452,2]
[338422346,1726627855717,-500.0,0.00019452,2]
[338422347,1726627855727,-729.69,0.00019452,2]
[338422348,1726627855737,-1145.39,0.00019452,2]
[338422349,1726627855746,-502.75898882,0.00019452,2]
[338422350,1726627855756,-500.0,0.00019452,2]
[338422351,1726627855767,-984.62,0.00019452,2]
[338422352,1726627855777,-500.0,0.00019452,2]
[338422353,1726627855788,-500.0,0.00019452,2]
[338422354,1726627855797,-979.8,0.00019452,2]
[338422355,1726627855807,-882.59,0.00019452,2]
[338422356,1726627855816,-815.9,0.00019452,2]
[338422357,1726627855825,-500.0,0.00019452,2]
[338422358,1726627855834,-500.0,0.00019452,2]
[338422359,1726627855844,-666.81,0.00019452,2]
[338422360,1726627855853,-648.53680776,0.00019452,2]
[338422361,1726627855863,-500.0,0.00019452,2]
[338422362,1726627855872,-536.7,0.00019452,2]
[338422363,1726627855881,-500.0,0.00019452,2]
[338422364,1726627855890,-501.69517399,0.00019452,2]
[338422365,1726627855899,-500.0,0.00019452,2]
[338422366,1726627855908,-500.0,0.00019452,2]
[338422367,1726627855917,-500.0,0.00019452,2]
[338422368,1726627855926,-500.0,0.00019452,2]
[338422369,1726627855935,-527.92,0.00019452,2]
[338422370,1726627855944,-1115.21,0.00019452,2]
[338422371,1726627855953,-824.54,0.00019452,2]
[338422372,1726627855962,-500.0,0.00019452,2]
[338422373,1726627855971,-500.0,0.00019452,2]
[338422374,1726627855980,-500.0,0.00019452,2]
[338422375,1726627855989,-500.0,0.00019452,2]
[338422376,1726627855998,-1671.18,0.00019452,2]
[338422377,1726627856007,-500.0,0.00019452,2]
[338422378,1726627856016,-4068.99,0.00019452,2]
[338422379,1726627856025,-500.0,0.00019452,2]
[338422380,1726627856034,-868.56,0.00019452,2]
[338422381,1726627856043,-502.33431009,0.00019452,2]
[338422382,1726627856052,-500.0,0.00019452,2]
[338422383,1726627856061,-1044.42,0.00019452,2]
[338422384,1726627856071,-720.75,0.00019452,2]
[338422385,1726627856080,-1910.65,0.00019452,2]
[338422386,1726627856089,-500.0,0.00019452,2]
[338422387,1726627856098,-502.27663152,0.00019452,2]
[338422388,1726627856107,-2494.91,0.00019452,2]
[338422389,1726627856116,-500.0,0.00019452,2]
[338422390,1726627856125,-1423.03,0.00019452,2]
[338422391,1726627856135,-593.59083222,0.00019452,2]
[338422392,1726627856144,-1120.0,0.00019452,2]
[338422393,1726627856153,-654.92,0.00019452,2]
[338422394,1726627856163,-383.78946518,0.00019452,2]
[338422395,1726627856172,-1015.84,0.00019452,2]
[338422396,1726627856181,-1389.69,0.00019452,2]
[338422397,1726627856191,-500.0,0.00019452,2]
[338422398,1726627856200,-211.377789,0.00019452,2]
[338422399,1726627856210,-211.377789,0.00019452,2]
[338422400,1726627856219,-211.377789,0.00019452,2]
[338422401,1726627856228,-211.377789,0.00019452,2]
[338422402,1726627856237,-702.82,0.00019452,2]
[338422403,1726627856247,-500.0,0.00019452,2]
[338422404,1726627856397,-500.0,0.00019452,2]
[338422405,1726627856408,-1572.18,0.00019452,2]
[338422406,1726627856418,-500.0,0.00019452,2]
[338422407,1726627856428,-1906.23,0.00019452,2]
[338422408,1726627856438,-582.54,0.00019452,2]
[338422409,1726627856451,-1279.29,0.00019452,2]
[338422410,1726627856465,-1806.57,0.00019452,2]
[338422411,1726627856475,-2019.7,0.00019452,2]
[338422412,1726627856486,-500.0,0.00019452,2]
[338422413,1726627856497,-1085.77,0.00019452,2]
[338422414,1726627856507,-562.52,0.00019452,2]
[338422415,1726627856517,-500.0,0.00019452,2]
[338422416,1726627856526,-637.46,0.00019452,2]
[338422417,1726627856538,-500.0,0.00019452,2]
[338422418,1726627856548,-2353.69,0.00019452,2]
[338422419,1726627856557,-903.98,0.00019452,2]
[338422420,1726627856565,-500.0,0.00019452,2]
[338422421,1726627856575,-500.96456076,0.00019452,2]
[338422422,1726627856584,-500.0,0.00019452,2]
[338422423,1726627856593,-500.0,0.00019452,2]
[338422424,1726627856602,-500.0,0.00019452,2]
[338422425,1726627856611,-574.5,0.00019452,2]
[338422426,1726627856620,-500.0,0.00019452,2]
[338422427,1726627856630,-1437.66,0.00019452,2]
[338422428,1726627856641,-500.0,0.00019452,2]
[338422429,1726627856650,-1045.01,0.00019452,2]
[338422430,1726627856660,-1249.79,0.00019452,2]
[338422431,1726627856669,-500.0,0.00019452,2]
[338422432,1726627856679,-500.0,0.00019452,2]
[338422433,1726627856687,-500.0,0.00019452,2]
[338422434,1726627856697,-500.0,0.00019452,2]
[338422435,1726627856707,-500.0,0.00019452,2]
[338422436,1726627856718,-500.0,0.00019452,2]
[338422437,1726627856728,-500.0,0.00019452,2]
[338422438,1726627856738,-469.66919191,0.00019452,2]
[338422439,1726627856749,-500.0,0.00019452,2]
[338422440,1726627856759,-1433.93,0.00019452,2]
[338422441,1726627856771,-500.0,0.00019452,2]
[338422442,1726627856783,-151.0,0.00019452,2]
[338422443,1726627856792,-1969.18,0.00019452,2]
[338422444,1726627856802,-151.0,0.00019452,2]
[338422445,1726627856811,-563.83,0.00019452,2]
[338422446,1726627856820,-2384.93,0.00019452,2]
[338422447,1726627856830,-500.0,0.00019452,2]
[338422448,1726627856841,-500.0,0.00019452,2]
[338422449,1726627856851,-500.0,0.00019452,2]
[338422450,1726627856862,-500.0,0.00019452,2]
[338422451,1726627856872,-1192.84,0.00019452,2]
[338422452,1726627856882,-1054.18,0.00019452,2]
[338422453,1726627856892,-864.83,0.00019452,2]
[338422454,1726627856904,-1414.83,0.00019452,2]
[338422455,1726627856915,-500.0,0.00019452,2]
[338422456,1726627856925,-500.0,0.00019452,2]
[338422457,1726627856935,-1676.63,0.00019452,2]
[338422458,1726627856946,-500.0,0.00019452,2]
[338422459,1726627856956,-500.0,0.00019452,2]
[338422460,1726627856965,-500.0,0.00019452,2]
[338422461,1726627856977,-976.23,0.00019452,2]
[338422462,1726627856989,-500.0,0.00019452,2]
[338422463,1726627856999,-601.12331123,0.00019452,2]
[338422464,1726627857010,-500.0,0.00019452,2]
[338422465,1726627857020,-500.0,0.00019452,2]
[338422466,1726627857031,-3097.92,0.00019452,2]
[338422467,1726627857041,-1075.47,0.00019452,2]
[338422468,1726627857051,-500.0,0.00019452,2]
[338422469,1726627857060,-500.0,0.00019452,2]
[338422470,1726627857070,-500.0,0.00019452,2]
[338422471,1726627857079,-500.0,0.00019452,2]
[338422472,1726627857091,-500.0,0.00019452,2]
[338422473,1726627857102,-1002.29,0.00019452,2]
[338422474,1726627857111,-500.0,0.00019452,2]
[338422475,1726627857121,-151.0,0.00019452,2]
[338422476,1726627857132,-151.0,0.00019452,2]
[338422477,1726627857143,-305.75426167,0.00019452,2]
[338422478,1726627857155,-500.0,0.00019452,2]
[338422479,1726627857167,-500.0,0.00019452,2]
[338422480,1726627857178,-500.0,0.00019452,2]
[338422481,1726627857189,-551.49,0.00019452,2]
[338422482,1726627857199,-619.96,0.00019452,2]
[338422483,1726627857211,-2276.9,0.00019452,2]
[338422484,1726627857223,-500.0,0.00019452,2]
[338422485,1726627857233,-500.0,0.00019452,2]
[338422486,1726627857243,-2812.63,0.00019452,2]
[338422487,1726627857254,-1761.87,0.00019452,2]
[338422488,1726627857265,-500.0,0.00019452,2]
[338422489,1726627857275,-3114.96,0.00019452,2]
[338422490,1726627857287,-500.0,0.00019452,2]
[338422491,1726627857297,-500.0,0.00019452,2]
[338422492,1726627857306,-1012.09,0.00019452,2]
[338422493,1726627857318,-500.0,0.00019452,2]
[338422494,1726627857328,-958.07,0.00019452,2]
[338422495,1726627857339,-500.0,0.00019452,2]
[338422496,1726627857350,-2145.47,0.00019452,2]
[338422497,1726627857360,-500.0,0.00019452,2]
[338422498,1726627857370,-2225.84,0.00019452,2]
[338422499,1726627857380,-500.0,0.00019452,2]
[338422500,1726627857390,-500.0,0.00019452,2]
[338422501,1726627857402,-1128.81,0.00019452,2]
[338422502,1726627857411,-151.0,0.00019452,2]
[338422503,1726627857419,-151.0,0.00019452,2]
[338422504,1726627857428,-500.0,0.00019452,2]
[338422505,1726627857437,-151.0,0.00019452,2]
[338422506,1726627857446,-500.0,0.00019452,2]
[338422507,1726627857459,-1732.79,0.00019452,2]
[338422508,1726627857468,-568.94,0.00019452,2]
[338422509,1726627857477,-1475.75,0.00019452,2]
[338422510,1726627857486,-1778.51,0.00019452,2]
[338422511,1726627857495,-501.37750576,0.00019452,2]
[338422512,1726627857504,-500.0,0.00019452,2]
[338422513,1726627857513,-500.0,0.00019452,2]
[338422514,1726627857522,-500.0,0.00019452,2]
[338422515,1726627857533,-500.0,0.00019452,2]
[338422516,1726627857542,-500.0,0.00019452,2]
[338422517,1726627857552,-500.0,0.00019452,2]
[338422518,1726627857561,-500.0,0.00019452,2]
[338422519,1726627857569,-500.0,0.00019452,2]
[338422520,1726627857579,-500.0,0.00019452,2]
[338422521,1726627857588,-581.77,0.00019452,2]
[338422522,1726627857597,-151.0,0.00019452,2]
[338422523,1726627857607,-151.0,0.00019452,2]
[338422524,1726627857616,-500.0,0.00019452,2]
[338422525,1726627857625,-500.0,0.00019452,2]
[338422526,1726627857634,-500.0,0.00019452,2]
[338422527,1726627857644,-151.0,0.00019452,2]
[338422528,1726627857654,-151.0,0.00019452,2]
[338422529,1726627857663,-500.0,0.00019452,2]
[338422530,1726627857671,-809.44,0.00019452,2]
[338422531,1726627857680,-548.95,0.00019452,2]
[338422532,1726627857689,-500.0,0.00019452,2]
[338422533,1726627857698,-151.0,0.00019452,2]
[338422534,1726627857707,-859.11,0.00019452,2]
[338422535,1726627857716,-258.672467,0.00019452,2]
[338422536,1726627857726,-151.0,0.00019452,2]
[338422537,1726627857735,-151.0,0.00019452,2]
[338422538,1726627857744,-154.304865,0.00019452,2]
[338422539,1726627857753,-500.0,0.00019452,2]
[338422540,1726627857762,-500.0,0.00019452,2]
[338422541,1726627857771,-151.0,0.00019452,2]
[338422542,1726627857781,-151.0,0.00019452,2]
[338422543,1726627857790,-500.0,0.00019452,2]
[338422544,1726627857800,-220.950615,0.00019452,2]
[338422545,1726627857809,-220.950615,0.00019452,2]
[338422546,1726627857818,-500.0,0.00019452,2]
[338422547,1726627857828,-500.0,0.00019452,2]
[338422548,1726627857837,-500.0,0.00019452,2]
[338422549,1726627857849,-500.0,0.00019452,2]
[338422550,1726627857858,-500.0,0.00019452,2]
[338422551,1726627857869,-500.0,0.00019452,2]
[338422552,1726627857881,-220.950615,0.00019452,2]
[338422553,1726627857892,-220.950615,0.00019452,2]
[338422554,1726627857903,-605.75,0.00019452,2]
[338422555,1726627857914,-900.98,0.00019452,2]
[338422556,1726627857924,-500.97683236,0.00019452,2]
[338422557,1726627857934,-500.0,0.00019452,2]
[338422558,1726627857946,-500.0,0.00019452,2]
[338422559,1726627857955,-500.0,0.00019452,2]
[338422560,1726627857964,-500.0,0.00019452,2]
[338422561,1726627857975,-700.96,0.00019452,2]